fUST/lending_fUST_20250219
["ID","MTS","AMOUNT","RATE_DAILY","PERIOD"]
[353555461,1739911849974,-719.26,0.00014684,2]
[353555462,1739911849983,-702.77,0.00014684,2]
[353555463,1739911849992,-500.0,0.00014684,2]
[353555464,1739911850002,-554.74,0.00014684,2]
[353555465,1739911850011,-500.0,0.00014684,2]
[353555466,1739911850020,-500.0,0.00014684,2]
[353555467,1739911850030,-1843.09,0.00014684,2]
[353555468,1739911850039,-954.34,0.00014684,2]
[353555469,1739911850048,-810.51,0.00014684,2]
[353555470,1739911850057,-306.0,0.00014711,2]
[353555471,1739911850067,-154.7234452,0.00014711,2]
[353555472,1739911850077,-306.0,0.00014711,2]
[353555473,1739911850086,-216.0000907,0.00014711,2]
[353555474,1739911850095,-216.0000907,0.00014711,2]
[353555475,1739911850104,-154.7234452,0.00014711,2]
[353555476,1739911850113,-216.0000907,0.00014711,2]
[353555477,1739911850123,-154.7234452,0.00014711,2]
[353555478,1739911850132,-215.6921651,0.00014711,2]
[353555479,1739911850143,-154.5610968,0.00014711,2]
[353555480,1739911850154,-500.0,0.00014767,2]
[353555481,1739911850165,-505.45,0.00014767,2]
[353555482,1739911850174,-500.0,0.00014767,2]
[353555483,1739911850184,-537.93,0.00014767,2]
[353555484,1739911850193,-610.18,0.00014767,2]
[353555485,1739911850204,-500.0,0.00014767,2]
[353555486,1739911850214,-500.0,0.00014767,2]
[353555487,1739911850223,-500.0,0.00014767,2]
[353555488,1739911850235,-500.0,0.00014767,2]
[353555489,1739911850244,-500.0,0.00014767,2]
[353555490,1739911850253,-723.16,0.00014767,2]
[353555491,1739911850263,-500.0,0.00014767,2]
[353555492,1739911850272,-605.5,0.00014767,2]
[353555493,1739911850281,-500.0,0.00014767,2]
[353555494,1739911850291,-500.0,0.00014767,2]
[353555495,1739911850300,-596.64919538,0.00014767,2]
[353555496,1739911850310,-972.6,0.00014767,2]
[353555497,1739911850319,-1204.38,0.00014767,2]
[353555498,1739911850328,-742.77,0.00014767,2]
[353555499,1739911850337,-652.29,0.00014767,2]
[353555500,1739911850347,-500.0,0.00014767,2]
[353555501,1739911850356,-7626.98,0.00014767,2]
[353555502,1739911850366,-1143.16,0.00014767,2]
[353555503,1739911850376,-2611.08,0.00014767,2]
[353555504,1739911850385,-19236.83,0.00014767,2]
[353555505,1739911850395,-583.56,0.00014767,2]
[353555506,1739911850405,-520.31,0.00014767,2]
[353555507,1739911850414,-803.65,0.00014767,2]
[353555508,1739911850423,-1534.37,0.00014767,2]
[353555509,1739911850432,-1344.1,0.00014767,2]
[353555510,1739911850441,-2802.64,0.00014767,2]
[353555511,1739911850451,-500.0,0.00014767,2]
[353555512,1739911850460,-1530.52,0.00014767,2]
[353555513,1739911850470,-3919.27,0.00014767,2]
[353555514,1739911850480,-1626.48,0.00014767,2]
[353555515,1739911850489,-500.0,0.00014767,2]
[353555516,1739911850499,-728.07,0.00014767,2]
[353555517,1739911850509,-613.82,0.00014767,2]
[353555518,1739911850519,-267.607392,0.00014767,2]
[353555519,1739911850528,-267.607392,0.00014767,2]
[353555520,1739911850539,-500.0,0.00014767,2]
[353555521,1739911850548,-500.0,0.00014767,2]
[353555522,1739911850557,-536.5,0.00014767,2]
[353555523,1739911850566,-719.26,0.00014767,2]
[353555524,1739911850575,-151.0,0.00014767,2]
[353555525,1739911850585,-702.77,0.00014767,2]
[353555526,1739911850594,-500.0,0.00014767,2]
[353555527,1739911850604,-554.74,0.00014767,2]
[353555528,1739911850616,-500.0,0.00014767,2]
[353555529,1739911850626,-383.28923133,0.00014767,2]
[353555530,1739911850637,-1843.09,0.00014767,2]
[353555531,1739911850646,-954.34,0.00014767,2]
[353555532,1739911850655,-154.162394,0.00014767,2]
[353555533,1739911850664,-810.51,0.00014767,2]
[353555534,1739911850674,-342.64576587,0.00014849,2]
[353555535,1739911850683,-505.45,0.00014849,2]
[353555536,1739911850692,-500.0,0.00014849,2]
[353555537,1739911850701,-537.93,0.00014849,2]
[353555538,1739911850710,-610.18,0.00014849,2]
[353555539,1739911850719,-217.90060602,0.00014849,2]
[353555540,1739911850727,-500.0,0.00014849,2]
[353555541,1739911850737,-500.0,0.00014849,2]
[353555542,1739911850746,-500.0,0.00014849,2]
[353555543,1739911850754,-500.0,0.00014849,2]
[353555544,1739911850763,-723.16,0.00014849,2]
[353555545,1739911850773,-500.0,0.00014849,2]
[353555546,1739911850783,-605.5,0.00014849,2]
[353555547,1739911850792,-500.0,0.00014849,2]
[353555548,1739911850801,-542.88,0.00014849,2]
[353555549,1739911850810,-151.0,0.00014849,2]
[353555550,1739911850820,-972.6,0.00014849,2]
[353555551,1739911850829,-1204.38,0.00014849,2]
[353555552,1739911850839,-742.77,0.00014849,2]
[353555553,1739911850848,-652.29,0.00014849,2]
[353555554,1739911850858,-500.0,0.00014849,2]
[353555555,1739911850867,-7626.98,0.00014849,2]
[353555556,1739911850877,-1143.16,0.00014849,2]
[353555557,1739911850888,-2611.08,0.00014849,2]
[353555558,1739911850897,-19236.83,0.00014849,2]
[353555559,1739911850907,-583.56,0.00014849,2]
[353555560,1739911850916,-520.31,0.00014849,2]
[353555561,1739911850925,-803.65,0.00014849,2]
[353555562,1739911850935,-1534.37,0.00014849,2]
[353555563,1739911850944,-1344.1,0.00014849,2]
[353555564,1739911850954,-2802.64,0.00014849,2]
[353555565,1739911850963,-500.0,0.00014849,2]
[353555566,1739911850972,-1530.52,0.00014849,2]
[353555567,1739911850982,-3919.27,0.00014849,2]
[353555568,1739911850991,-1626.48,0.00014849,2]
[353555569,1739911851001,-500.0,0.00014849,2]
[353555570,1739911851011,-728.07,0.00014849,2]
[353555571,1739911851021,-613.82,0.00014849,2]
[353555572,1739911851031,-500.0,0.00014849,2]
[353555573,1739911851040,-500.0,0.00014849,2]
[353555574,1739911851049,-536.5,0.00014849,2]
[353555575,1739911851059,-719.26,0.00014849,2]
[353555576,1739911851068,-702.77,0.00014849,2]
[353555577,1739911851077,-500.0,0.00014849,2]
[353555578,1739911851087,-554.74,0.00014849,2]
[353555579,1739911851097,-500.0,0.00014849,2]
[353555580,1739911851106,-1843.09,0.00014849,2]
[353555581,1739911851116,-954.34,0.00014849,2]
[353555582,1739911851125,-810.51,0.00014849,2]
[353555583,1739911851134,-374.83052,0.00014872,2]
[353555584,1739911851146,-154.7234452,0.00014872,2]
[353555585,1739911851156,-154.7234452,0.00014872,2]
[353555586,1739911851166,-154.7234452,0.00014872,2]
[353555587,1739911851175,-154.2075218,0.00014872,2]
[353555588,1739911851184,-500.0,0.00014873,2]
[353555589,1739911851195,-500.0,0.00014873,2]
[353555590,1739911851204,-500.0,0.00014873,2]
[353555591,1739911851213,-500.0,0.00014873,2]
[353555592,1739911851223,-10077.14434103,0.000149,2]
[353555593,1739911851234,-151.0,0.000149,2]
[353555594,1739911851244,-196.656108,0.000149,2]
[353555595,1739911851253,-151.0,0.000149,2]
[353555596,1739911851262,-151.0,0.000149,2]
[353555597,1739911851271,-106427.51262338,0.000149,2]
[353555598,1739911851399,-2348.825,0.000149,2]
[353555599,1739911851410,-107869.07781502,0.000149,2]
[353555600,1739911851449,-23444.14117,0.000149,2]
[353555605,1739912387992,400.0,9.041e-05,2]
[353555606,1739912738145,-5000.0,0.00012316,2]
[353555607,1739912738167,-5000.0,0.0001244,2]
[353555608,1739912738190,-250.0,0.00012566,2]
[353555609,1739912738212,-300.0,0.00012729,2]
[353555610,1739912738232,-500.0,0.0001273,2]
[353555611,1739912738254,-500.0,0.0001273,2]
[353555612,1739912738275,-500.0,0.0001273,2]
[353555613,1739912738295,-500.0,0.0001273,2]
[353555614,1739912738315,-500.0,0.0001273,2]
[353555615,1739912738336,-500.0,0.0001273,2]
[353555616,1739912738357,-221.45771016,0.0001273,2]
[353555617,1739912738378,-24900.0,0.00012731,2]
[353555618,1739912738403,-900.0,0.00013068,2]
[353555619,1739912738423,-183.65111482,0.00013598,2]
[353555620,1739912738444,-500.0,0.00013673,2]
[353555621,1739912738467,-478.11359212,0.00013673,2]
[353555622,1739912738493,-153.23334982,0.00013673,2]
[353555623,1739912738513,-180.58557737,0.00013673,2]
[353555624,1739912738533,-175.97804628,0.00013673,2]
[353555625,1739912738554,-168.39433235,0.00013673,2]
[353555626,1739912738574,-501.01531438,0.00013673,2]
[353555627,1739912738595,-500.0,0.00013673,2]
[353555628,1739912738615,-626.10567238,0.00013673,2]
[353555629,1739912738638,-151.79141476,0.00013673,2]
[353555630,1739912738657,-321.12871801,0.00013673,2]
[353555631,1739912738678,-500.0,0.00013673,2]
[353555632,1739912738699,-600.4499246,0.00013673,2]
[353555633,1739912738718,-251.77426011,0.00013673,2]
[353555634,1739912738738,-576.83473718,0.00013692,2]
[353555635,1739912738761,-500.0,0.00013692,2]
[353555636,1739912738781,-514.84016991,0.00013692,2]
[353555637,1739912738802,-500.0,0.00013692,2]
[353555638,1739912738822,-500.0,0.00013692,2]
[353555639,1739912738843,-588.68497984,0.00013692,2]
[353555640,1739912738866,-500.0,0.00013692,2]
[353555641,1739912738890,-500.0,0.00013692,2]
[353555642,1739912738913,-500.0,0.00013692,2]
[353555643,1739912738934,-500.0,0.00013692,2]
[353555644,1739912738956,-500.0,0.00013692,2]
[353555645,1739912738981,-500.0,0.00013692,2]
[353555646,1739912739003,-500.0,0.00013692,2]
[353555647,1739912739027,-500.0,0.00013692,2]
[353555648,1739912739047,-372.53538236,0.00013692,2]
[353555649,1739912739069,-500.0,0.00013692,2]
[353555650,1739912739091,-286.35118212,0.00013692,2]
[353555651,1739912739113,-500.0,0.00013692,2]
[353555652,1739912739137,-500.0,0.00013692,2]
[353555653,1739912739159,-500.0,0.00013692,2]
[353555654,1739912739181,-500.0,0.00013692,2]
[353555655,1739912739203,-500.0,0.00013692,2]
[353555656,1739912739230,-500.0,0.00013692,2]
[353555657,1739912739254,-500.0,0.00013692,2]
[353555658,1739912739276,-500.0,0.00013692,2]
[353555659,1739912739298,-500.0,0.00013692,2]
[353555660,1739912739320,-500.0,0.00013692,2]
[353555661,1739912739342,-500.0,0.00013692,2]
[353555662,1739912739364,-500.0,0.00013692,2]
[353555663,1739912739388,-500.0,0.00013692,2]
[353555664,1739912739411,-500.0,0.00013692,2]
[353555665,1739912739433,-500.0,0.00013692,2]
[353555666,1739912739454,-500.0,0.00013692,2]
[353555667,1739912739478,-500.0,0.00013692,2]
[353555668,1739912739500,-500.0,0.00013692,2]
[353555669,1739912739523,-500.0,0.00013692,2]
[353555670,1739912739546,-500.0,0.00013692,2]
[353555671,1739912739567,-500.0,0.00013692,2]
[353555672,1739912739589,-235.83512919,0.00013692,2]
[353555673,1739912739610,-500.0,0.00013692,2]
[353555674,1739912739630,-262.24294791,0.00013697,2]
[353555675,1739912739653,-500.0,0.00013697,2]
[353555676,1739912739674,-416.96254208,0.00013697,2]
[353555677,1739912739695,-500.0,0.00013698,2]
[353555678,1739912739716,-500.0,0.00013698,2]
[353555679,1739912739737,-500.0,0.00013698,2]
[353555680,1739912739758,-295.27144486,0.00013698,2]
[353555681,1739912739778,-354.25139608,0.00013698,2]
[353555682,1739912739798,-517.16985083,0.00013698,2]
[353555683,1739912739818,-519.31286361,0.00013698,2]
[353555684,1739912739839,-263.25114976,0.00013698,2]
[353555685,1739912739859,-500.0,0.00013698,2]
[353555686,1739912739881,-505.0875877,0.00013698,2]
[353555687,1739912739903,-500.0,0.00013698,2]
[353555688,1739912739922,-509.82407543,0.00013698,2]
[353555689,1739912739943,-500.0,0.00013698,2]
[353555690,1739912739964,-504.21872818,0.00013698,2]
[353555691,1739912739985,-500.0,0.00013698,2]
[353555692,1739912740005,-500.0,0.00013698,2]
[353555693,1739912740026,-500.0,0.00013698,2]
[353555694,1739912740048,-500.0,0.00013698,2]
[353555695,1739912740069,-500.0,0.00013698,2]
[353555696,1739912740089,-502.01452723,0.00013698,2]
[353555697,1739912740109,-500.0,0.00013698,2]
[353555698,1739912740130,-500.0,0.00013698,2]
[353555699,1739912740152,-500.0,0.00013698,2]
[353555700,1739912740172,-503.30095877,0.00013698,2]
[353555701,1739912740195,-500.0,0.00013698,2]
[353555702,1739912740216,-500.0,0.00013698,2]
[353555703,1739912740237,-500.0,0.00013698,2]
[353555704,1739912740259,-500.0,0.00013698,2]
[353555705,1739912740279,-565.69982765,0.00013698,2]
[353555706,1739912740300,-500.0,0.00013698,2]
[353555707,1739912740321,-500.0,0.00013698,2]
[353555708,1739912740342,-500.0,0.00013698,2]
[353555709,1739912740362,-500.434845,0.00013698,2]
[353555710,1739912740383,-500.0,0.00013698,2]
[353555711,1739912740406,-502.02870833,0.00013698,2]
[353555712,1739912740529,-500.0,0.00013698,2]
[353555713,1739912740556,-500.0,0.00013698,2]
[353555714,1739912740577,-500.0,0.00013698,2]
[353555715,1739912740598,-500.0,0.00013698,2]
[353555716,1739912740618,-500.0,0.00013698,2]
[353555717,1739912740642,-500.0,0.00013698,2]
[353555718,1739912740662,-500.0,0.00013698,2]
[353555719,1739912740683,-500.0,0.00013698,2]
[353555720,1739912740702,-200.9,0.00013698,2]
[353555721,1739912740723,-503.13318161,0.00013698,2]
[353555722,1739912740743,-501.1563273,0.00013698,2]
[353555723,1739912740764,-500.0,0.00013698,2]
[353555724,1739912740784,-500.0,0.00013698,2]
[353555725,1739912740804,-500.0,0.00013698,2]
[353555726,1739912740824,-333.56975195,0.00013698,2]
[353555727,1739912740843,-500.0,0.00013698,2]
[353555728,1739912740863,-500.0,0.00013698,2]
[353555729,1739912740883,-336.88938994,0.00013698,2]
[353555730,1739912740905,-500.0,0.00013698,2]
[353555731,1739912740925,-500.0,0.00013698,2]
[353555732,1739912740946,-500.0,0.00013698,2]
[353555733,1739912740967,-500.37766072,0.00013698,2]
[353555734,1739912740987,-504.46962706,0.00013698,2]
[353555735,1739912741007,-500.0,0.00013698,2]
[353555736,1739912741027,-503.48,0.00013698,2]
[353555737,1739912741047,-500.0,0.00013698,2]
[353555738,1739912741067,-500.0,0.00013698,2]
[353555739,1739912741088,-500.0,0.00013698,2]
[353555740,1739912741108,-500.0,0.00013698,2]
[353555741,1739912741128,-500.0,0.00013698,2]
[353555742,1739912741152,-500.0,0.00013698,2]
[353555743,1739912741172,-193.65982697,0.00013698,2]
[353555744,1739912741193,-500.0,0.00013698,2]
[353555745,1739912741215,-500.0,0.00013698,2]
[353555746,1739912741237,-500.0,0.00013698,2]
[353555747,1739912741258,-500.0,0.00013698,2]
[353555748,1739912741279,-500.0,0.00013698,2]
[353555749,1739912741300,-500.0,0.00013698,2]
[353555750,1739912741320,-500.0,0.00013698,2]
[353555751,1739912741340,-500.0,0.00013698,2]
[353555752,1739912741361,-500.0,0.00013698,2]
[353555753,1739912741381,-500.0,0.00013698,2]
[353555754,1739912741406,-500.0,0.00013698,2]
[353555755,1739912741426,-500.0,0.00013698,2]
[353555756,1739912741447,-500.0,0.00013698,2]
[353555757,1739912741468,-500.0,0.00013698,2]
[353555758,1739912741489,-225.20420978,0.00013698,2]
[353555759,1739912741511,-500.0,0.00013698,2]
[353555760,1739912741532,-500.40338379,0.00013698,2]
[353555761,1739912741555,-500.0,0.00013698,2]
[353555762,1739912741575,-500.0,0.00013698,2]
[353555763,1739912741595,-500.0,0.00013698,2]
[353555764,1739912741614,-500.0,0.00013698,2]
[353555765,1739912741635,-500.0,0.00013698,2]
[353555766,1739912741658,-500.0,0.00013698,2]
[353555767,1739912741678,-500.0,0.00013698,2]
[353555768,1739912741698,-500.0,0.00013698,2]
[353555769,1739912741718,-500.0,0.00013698,2]
[353555770,1739912741739,-500.0,0.00013698,2]
[353555771,1739912741759,-500.0,0.00013698,2]
[353555772,1739912741779,-500.0,0.00013698,2]
[353555773,1739912741800,-500.0,0.00013698,2]
[353555774,1739912741821,-500.0,0.00013698,2]
[353555775,1739912741842,-500.0,0.00013698,2]
[353555776,1739912741864,-500.0,0.00013698,2]
[353555777,1739912741890,-500.0,0.00013698,2]
[353555778,1739912741912,-500.0,0.00013698,2]
[353555779,1739912741934,-500.0,0.00013698,2]
[353555780,1739912741955,-231.69908093,0.00013698,2]
[353555781,1739912741975,-500.0,0.00013698,2]
[353555782,1739912741997,-500.0,0.00013698,2]
[353555783,1739912742019,-500.0,0.00013698,2]
[353555784,1739912742040,-500.0,0.00013698,2]
[353555785,1739912742062,-500.0,0.00013698,2]
[353555786,1739912742084,-500.0,0.00013698,2]
[353555787,1739912742104,-500.0,0.00013698,2]
[353555788,1739912742125,-377.64123151,0.00013698,2]
[353555789,1739912742151,-500.0,0.00013698,2]
[353555790,1739912742172,-500.0,0.00013698,2]
[353555791,1739912742193,-500.0,0.00013698,2]
[353555792,1739912742214,-500.0,0.00013698,2]
[353555793,1739912742236,-500.0,0.00013698,2]
[353555794,1739912742257,-500.0,0.00013698,2]
[353555795,1739912742279,-500.0,0.00013698,2]
[353555796,1739912742299,-500.0,0.00013698,2]
[353555797,1739912742321,-500.0,0.00013698,2]
[353555798,1739912742342,-500.0,0.00013698,2]
[353555799,1739912742364,-500.0,0.00013698,2]
[353555800,1739912742384,-500.0,0.00013698,2]
[353555801,1739912742408,-500.0,0.00013698,2]
[353555802,1739912742429,-500.0,0.00013698,2]
[353555803,1739912742449,-500.0,0.00013698,2]
[353555804,1739912742473,-500.0,0.00013698,2]
[353555805,1739912742494,-500.0,0.00013698,2]
[353555806,1739912742516,-500.0,0.00013698,2]
[353555807,1739912742537,-500.0,0.00013698,2]
[353555808,1739912742559,-500.0,0.00013698,2]
[353555809,1739912742579,-500.0,0.00013698,2]
[353555810,1739912742600,-500.0,0.00013698,2]
[353555811,1739912742621,-500.0,0.00013698,2]
[353555812,1739912742645,-500.0,0.00013698,2]
[353555813,1739912742666,-508.62066582,0.00013698,2]
[353555814,1739912742687,-500.0,0.00013698,2]
[353555815,1739912742708,-500.0,0.00013698,2]
[353555816,1739912742728,-500.0,0.00013698,2]
[353555817,1739912742749,-382.041907,0.00013698,2]
[353555818,1739912742771,-500.0,0.00013698,2]
[353555819,1739912742791,-500.0,0.00013698,2]
[353555820,1739912742811,-500.0,0.00013698,2]
[353555821,1739912742831,-500.0,0.00013698,2]
[353555822,1739912742852,-500.0,0.00013698,2]
[353555823,1739912742874,-500.0,0.00013698,2]
[353555824,1739912742899,-500.0,0.00013698,2]
[353555825,1739912742920,-500.0,0.00013698,2]
[353555826,1739912742941,-500.0,0.00013698,2]
[353555827,1739912742961,-300.0,0.00013698,2]
[353555828,1739912742982,-500.0,0.00013698,2]
[353555829,1739912743003,-500.0,0.00013698,2]
[353555830,1739912743024,-500.0,0.00013698,2]
[353555831,1739912743046,-500.0,0.00013698,2]
[353555832,1739912743067,-500.0,0.00013698,2]
[353555833,1739912743088,-500.0,0.00013698,2]
[353555834,1739912743110,-500.0,0.00013698,2]
[353555835,1739912743133,-500.0,0.00013698,2]
[353555836,1739912743157,-500.0,0.00013698,2]
[353555837,1739912743333,-500.0,0.00013698,2]
[353555838,1739912743355,-501.28174758,0.00013698,2]
[353555839,1739912743377,-551.78,0.00013698,2]
[353555840,1739912743398,-500.0,0.00013698,2]
[353555841,1739912743418,-500.0,0.00013698,2]
[353555842,1739912743439,-500.0,0.00013698,2]
[353555843,1739912743462,-500.0,0.00013698,2]
[353555844,1739912743487,-500.0,0.00013698,2]
[353555845,1739912743508,-500.0,0.00013698,2]
[353555846,1739912743531,-500.0,0.00013698,2]
[353555847,1739912743555,-500.0,0.00013698,2]
[353555848,1739912743577,-500.0,0.00013698,2]
[353555849,1739912743598,-500.0,0.00013698,2]
[353555850,1739912743619,-500.0,0.00013698,2]
[353555851,1739912743644,-500.0,0.00013698,2]
[353555852,1739912743665,-500.0,0.00013698,2]
[353555853,1739912743687,-500.0,0.00013698,2]
[353555854,1739912743709,-500.0,0.00013698,2]
[353555855,1739912743732,-500.0,0.00013698,2]
[353555856,1739912743753,-138.90332686,0.00013698,2]
[353555857,1739912834085,-5000.0,0.00012218,2]
[353555858,1739912834108,-5000.0,0.00012341,2]
[353555859,1739912834130,-300.0,0.00012365,2]
[353555860,1739912834153,-2904.71947761,0.00012366,2]
[353555861,1739912834175,-197.54596676,0.00012466,2]
[353555862,1739912834197,-900.0,0.00013068,2]
[353555863,1739912834220,-420.0,0.00013569,2]
[353555864,1739912834242,-500.0,0.00013673,2]
[353555865,1739912834264,-321.12871801,0.00013673,2]
[353555866,1739912834286,-500.0,0.00013673,2]
[353555867,1739912834307,-600.4499246,0.00013673,2]
[353555868,1739912834328,-251.77426011,0.00013673,2]
[353555869,1739912834353,-500.0,0.00013697,2]
[353555870,1739912834377,-500.0,0.00013697,2]
[353555871,1739912834399,-500.0,0.00013697,2]
[353555872,1739912834420,-514.84016991,0.00013697,2]
[353555873,1739912834443,-500.0,0.00013697,2]
[353555874,1739912834466,-588.68497984,0.00013697,2]
[353555875,1739912834490,-500.0,0.00013697,2]
[353555876,1739912834517,-500.0,0.00013697,2]
[353555877,1739912834540,-576.83473718,0.00013697,2]
[353555878,1739912834563,-500.0,0.00013697,2]
[353555879,1739912834586,-157.71606391,0.00013697,2]
[353555880,1739912834608,-500.0,0.00013697,2]
[353555881,1739912834629,-500.0,0.00013697,2]
[353555882,1739912834651,-500.0,0.00013697,2]
[353555883,1739912834674,-500.0,0.00013697,2]
[353555884,1739912834696,-500.0,0.00013697,2]
[353555885,1739912834718,-500.0,0.00013697,2]
[353555886,1739912834743,-500.0,0.00013697,2]
[353555887,1739912834765,-500.0,0.00013697,2]
[353555888,1739912834788,-500.0,0.00013697,2]
[353555889,1739912834809,-372.53538236,0.00013697,2]
[353555890,1739912834832,-500.0,0.00013697,2]
[353555891,1739912834857,-500.0,0.00013697,2]
[353555892,1739912834880,-500.0,0.00013697,2]
[353555893,1739912834903,-550.0,0.00013697,2]
[353555894,1739912835106,-500.0,0.00013697,2]
[353555895,1739912835135,-500.0,0.00013697,2]
[353555896,1739912835160,-500.0,0.00013697,2]
[353555897,1739912835183,-500.0,0.00013697,2]
[353555898,1739912835206,-500.0,0.00013697,2]
[353555899,1739912835229,-500.0,0.00013697,2]
[353555900,1739912835252,-500.0,0.00013697,2]
[353555901,1739912835275,-500.0,0.00013697,2]
[353555902,1739912835298,-500.0,0.00013697,2]
[353555903,1739912835320,-500.0,0.00013697,2]
[353555904,1739912835343,-500.0,0.00013697,2]
[353555905,1739912835364,-500.0,0.00013697,2]
[353555906,1739912835386,-500.0,0.00013697,2]
[353555907,1739912835409,-198.48346468,0.00013697,2]
[353555908,1739912835432,-361.09667314,0.00013698,2]
[353555909,1739912835453,-500.0,0.00013698,2]
[353555910,1739912835476,-500.0,0.00013698,2]
[353555911,1739912835503,-500.0,0.00013698,2]
[353555912,1739912835524,-500.0,0.00013698,2]
[353555913,1739912835546,-500.0,0.00013698,2]
[353555914,1739912835570,-500.0,0.00013698,2]
[353555915,1739912835592,-500.0,0.00013698,2]
[353555916,1739912835614,-453.6850382,0.00013698,2]
[353555917,1739912835635,-500.0,0.00013698,2]
[353555918,1739912835656,-500.0,0.00013698,2]
[353555919,1739912835677,-500.0,0.00013698,2]
[353555920,1739912835698,-500.0,0.00013698,2]
[353555921,1739912835720,-516.57576973,0.00013698,2]
[353555922,1739912835741,-500.0,0.00013698,2]
[353555923,1739912835762,-500.0,0.00013698,2]
[353555924,1739912835783,-500.0,0.00013698,2]
[353555925,1739912835803,-500.0,0.00013698,2]
[353555926,1739912835822,-500.0,0.00013698,2]
[353555927,1739912835843,-209.709451,0.00013698,2]
[353555928,1739912835863,-500.0,0.00013698,2]
[353555929,1739912835884,-500.0,0.00013698,2]
[353555930,1739912835905,-500.0,0.00013698,2]
[353555931,1739912835925,-500.0,0.00013698,2]
[353555932,1739912835946,-500.0,0.00013698,2]
[353555933,1739912835969,-500.0,0.00013698,2]
[353555934,1739912835990,-500.0,0.00013698,2]
[353555935,1739912836011,-500.0,0.00013698,2]
[353555936,1739912836031,-500.0,0.00013698,2]
[353555937,1739912836053,-500.0,0.00013698,2]
[353555938,1739912836074,-500.0,0.00013698,2]
[353555939,1739912836095,-500.0,0.00013698,2]
[353555940,1739912836116,-500.0,0.00013698,2]
[353555941,1739912836137,-500.0,0.00013698,2]
[353555942,1739912836158,-500.0,0.00013698,2]
[353555943,1739912836181,-500.0,0.00013698,2]
[353555944,1739912836203,-553.35952589,0.00013698,2]
[353555945,1739912836225,-511.91622594,0.00013698,2]
[353555946,1739912836246,-500.0,0.00013698,2]
[353555947,1739912836267,-500.0,0.00013698,2]
[353555948,1739912836288,-500.0,0.00013698,2]
[353555949,1739912836310,-620.27,0.00013698,2]
[353555950,1739912836332,-500.0,0.00013698,2]
[353555951,1739912836353,-500.0,0.00013698,2]
[353555952,1739912836374,-500.0,0.00013698,2]
[353555953,1739912836396,-500.0,0.00013698,2]
[353555954,1739912836417,-500.0,0.00013698,2]
[353555955,1739912836440,-500.0,0.00013698,2]
[353555956,1739912836462,-500.0,0.00013698,2]
[353555957,1739912836484,-500.0,0.00013698,2]
[353555958,1739912836511,-500.0,0.00013698,2]
[353555959,1739912836533,-500.0,0.00013698,2]
[353555960,1739912836555,-500.0,0.00013698,2]
[353555961,1739912836577,-500.0,0.00013698,2]
[353555962,1739912836598,-500.0,0.00013698,2]
[353555963,1739912836618,-440.26918304,0.00013698,2]
[353555964,1739912836640,-500.0,0.00013698,2]